fUST/lending_fUST_20250723
["ID","MTS","AMOUNT","RATE_DAILY","PERIOD"]
[374190320,1753242644888,-463.31154415,0.00022191,2]
[374190322,1753242644899,-460.0,0.00022191,2]
[374190324,1753242644908,-460.0,0.00022191,2]
[374190326,1753242644917,-762.11,0.00022191,2]
[374190328,1753242644927,-460.0,0.00022191,2]
[374190330,1753242644936,-460.0,0.00022191,2]
[374190332,1753242644945,-460.0,0.00022191,2]
[374190334,1753242644955,-460.0,0.00022191,2]
[374190336,1753242644964,-151.0,0.00022191,7]
[374190338,1753242644973,-460.0,0.00022191,2]
[374190340,1753242644982,-1352.44,0.00022191,2]
[374190342,1753242644991,-460.0,0.00022191,2]
[374190344,1753242645002,-460.0,0.00022191,2]
[374190346,1753242645011,-921.04,0.00022191,2]
[374190348,1753242645020,-460.0,0.00022191,2]
[374190350,1753242645030,-470.71106011,0.00022191,2]
[374190352,1753242645039,-460.0,0.00022191,2]
[374190354,1753242645049,-460.0,0.00022191,2]
[374190356,1753242645058,-553.42025488,0.00022191,2]
[374190358,1753242645067,-460.0,0.00022191,2]
[374190360,1753242645076,-1115.04,0.00022191,2]
[374190362,1753242645085,-151.0,0.00022191,7]
[374190364,1753242645095,-463.59684902,0.00022191,2]
[374190366,1753242645104,-460.0,0.00022191,2]
[374190368,1753242645113,-460.0,0.00022191,2]
[374190370,1753242645123,-460.0,0.00022191,2]
[374190372,1753242645133,-914.59,0.00022191,2]
[374190374,1753242645142,-460.0,0.00022191,2]
[374190376,1753242645151,-460.0,0.00022191,2]
[374190378,1753242645163,-762.16,0.00022191,2]
[374190380,1753242645173,-460.0,0.00022191,2]
[374190382,1753242645182,-460.0,0.00022191,2]
[374190384,1753242645192,-460.0,0.00022191,2]
[374190394,1753242645280,-460.0,0.00022191,2]
[374190396,1753242645289,-571.1,0.00022191,2]
[374190398,1753242645299,-460.0,0.00022191,2]
[374190400,1753242645308,-460.0,0.00022191,2]
[374190402,1753242645317,-465.86880002,0.00022191,2]
[374190404,1753242645327,-1519.69,0.00022191,2]
[374190406,1753242645336,-460.0,0.00022191,2]
[374190408,1753242645345,-460.0,0.00022191,2]
[374190410,1753242645355,-151.0,0.00022191,7]
[374190412,1753242645364,-460.0,0.00022191,2]
[374190414,1753242645374,-151.0,0.00022191,7]
[374190416,1753242645383,-460.0,0.00022191,2]
[374190418,1753242645392,-460.0,0.00022191,2]
[374190420,1753242645402,-151.0,0.00022191,7]
[374190422,1753242645411,-460.0,0.00022191,2]
[374190424,1753242645421,-460.0,0.00022191,2]
[374190426,1753242645430,-1165.28,0.00022191,2]
[374190428,1753242645439,-460.0,0.00022191,2]
[374190430,1753242645448,-460.0,0.00022191,2]
[374190432,1753242645457,-466.41807707,0.00022191,2]
[374190434,1753242645466,-460.0,0.00022191,2]
[374190436,1753242645476,-460.0,0.00022191,2]
[374190438,1753242645485,-151.0,0.00022191,7]
[374190440,1753242645494,-461.73942269,0.00022192,2]
[374190442,1753242645504,-460.0,0.00022192,2]
[374190444,1753242645514,-463.06082664,0.00022192,2]
[374190446,1753242645526,-463.29544087,0.00022192,2]
[374190448,1753242645535,-464.10258082,0.00022192,2]
[374190450,1753242645544,-460.0,0.00022192,2]
[374190452,1753242645553,-460.0,0.00022192,2]
[374190454,1753242645562,-460.0,0.00022192,2]
[374190456,1753242645571,-460.0,0.00022192,2]
[374190458,1753242645582,-464.44031236,0.00022192,2]
[374190460,1753242645592,-460.0,0.00022192,2]
[374190462,1753242645601,-460.0,0.00022192,2]
[374190464,1753242645611,-460.0,0.00022192,2]
[374190466,1753242645620,-429.674968,0.00022247,2]
[374190468,1753242645629,-429.674968,0.00022247,2]
[374190470,1753242645639,-151.827683,0.00022279,7]
[374190472,1753242645648,-151.450814,0.00022279,7]
[374190474,1753242645657,-1475.90050002,0.00022279,6]
[374190476,1753242645666,-151.248271,0.00022324,7]
[374190478,1753242645676,-151.0,0.00022324,7]
[374190480,1753242645685,-195.283098,0.00022326,7]
[374190482,1753242645695,-261.88119994,0.00022338,2]
[374190484,1753242645704,-1475.90050002,0.00022452,7]
[374190486,1753242645713,-500.0,0.00022454,2]
[374190488,1753242645723,-4717.00295148,0.00022463,2]
[374190490,1753242645732,-500.0,0.00022465,2]
[374190492,1753242645741,-247.92601288,0.00022465,2]
[374190494,1753242645750,-500.0,0.00022465,2]
[374190496,1753242645760,-252.79307641,0.00022465,2]
[374190498,1753242645773,-151.0,0.00022465,2]
[374190500,1753242645782,-460.0,0.00022465,2]
[374190502,1753242645791,-460.0,0.00022465,2]
[374190504,1753242645800,-515.48757029,0.00022465,2]
[374190506,1753242645810,-152.61966,0.00022465,7]
[374190508,1753242645819,-463.11613877,0.00022465,2]
[374190510,1753242645829,-460.0,0.00022465,2]
[374190513,1753242645838,-460.0,0.00022465,2]
[374190515,1753242645847,-460.0,0.00022465,2]
[374190517,1753242645856,-462.67757961,0.00022465,2]
[374190519,1753242645866,-463.45058768,0.00022465,2]
[374190520,1753242645875,-306.74130257,0.00022465,2]
[374190521,1753242645885,-152.101731,0.00022465,7]
[374190523,1753242645894,-463.73535859,0.00022465,2]
[374190525,1753242645904,-460.0,0.00022465,2]
[374190527,1753242645913,-460.0,0.00022465,2]
[374190528,1753242645922,-460.0,0.00022465,2]
[374190530,1753242645931,-151.0,0.00022465,7]
[374190532,1753242645941,-460.0,0.00022465,2]
[374190533,1753242645950,-460.0,0.00022465,2]
[374190534,1753242645959,-156.798628,0.00022465,7]
[374190536,1753242645969,-460.0,0.00022465,2]
[374190537,1753242645978,-460.0,0.00022465,2]
[374190538,1753242645987,-468.87210712,0.00022465,2]
[374190539,1753242645996,-460.0,0.00022465,2]
[374190540,1753242646005,-466.64434431,0.00022465,2]
[374190541,1753242646014,-460.0,0.00022465,2]
[374190542,1753242646024,-460.0,0.00022465,2]
[374190543,1753242646033,-247.6,0.00022465,2]
[374190544,1753242646042,-460.0,0.00022465,2]
[374190545,1753242646051,-460.0,0.00022465,2]
[374190546,1753242646061,-3230.04,0.00022465,2]
[374190547,1753242646070,-487.55699441,0.00022465,2]
[374190549,1753242646079,-460.0,0.00022465,2]
[374190551,1753242646089,-460.0,0.00022465,2]
[374190553,1753242646098,-460.0,0.00022465,2]
[374190555,1753242646107,-460.0,0.00022465,2]
[374190557,1753242646116,-465.22339676,0.00022465,2]
[374190558,1753242646125,-513.42699304,0.00022465,2]
[374190560,1753242646134,-152.662486,0.00022465,7]
[374190562,1753242646143,-460.0,0.00022465,2]
[374190564,1753242646152,-460.0,0.00022465,2]
[374190566,1753242646164,-460.0,0.00022465,2]
[374190568,1753242646173,-460.0,0.00022465,2]
[374190570,1753242646182,-460.0,0.00022465,2]
[374190572,1753242646191,-460.0,0.00022465,2]
[374190574,1753242646200,-151.0,0.00022465,7]
[374190576,1753242646210,-460.0,0.00022465,2]
[374190578,1753242646220,-1233.9,0.00022465,2]
[374190580,1753242646229,-460.0,0.00022465,2]
[374190582,1753242646238,-460.0,0.00022465,2]
[374190584,1753242646249,-460.0,0.00022465,2]
[374190586,1753242646258,-460.0,0.00022465,2]
[374190588,1753242646268,-152.106028,0.00022465,7]
[374190590,1753242646277,-310.55483868,0.00022465,2]
[374190592,1753242646286,-460.0,0.00022465,2]
[374190594,1753242646294,-151.0,0.00022465,7]
[374190596,1753242646303,-466.83589048,0.00022465,2]
[374190598,1753242646312,-462.5541493,0.00022465,2]
[374190600,1753242646322,-465.77190469,0.00022465,2]
[374190602,1753242646331,-1498.23,0.00022465,2]
[374190604,1753242646340,-465.1436033,0.00022465,2]
[374190606,1753242646350,-460.0,0.00022465,2]
[374190608,1753242646359,-463.0195222,0.00022465,2]
[374190610,1753242646368,-464.5817107,0.00022465,2]
[374190612,1753242646377,-151.518171,0.00022465,7]
[374190614,1753242646386,-1711.58,0.00022465,2]
[374190616,1753242646395,-460.0,0.00022465,2]
[374190618,1753242646404,-460.0,0.00022465,2]
[374190619,1753242646413,-460.0,0.00022465,2]
[374190621,1753242646423,-599.02740519,0.00022465,2]
[374190623,1753242646432,-460.0,0.00022465,2]
[374190625,1753242646441,-151.0,0.00022465,7]
[374190627,1753242646450,-254.51704596,0.00022465,2]
[374190629,1753242646459,-460.0,0.00022465,2]
[374190631,1753242646468,-257.94,0.00022465,2]
[374190633,1753242646478,-465.3565456,0.00022465,2]
[374190635,1753242646487,-460.0,0.00022465,2]
[374190637,1753242646496,-460.0,0.00022465,2]
[374190639,1753242646506,-185.492364,0.00022465,7]
[374190641,1753242646515,-446.2331396,0.00022465,2]
[374190643,1753242646527,-460.0,0.00022465,2]
[374190645,1753242646536,-460.0,0.00022465,2]
[374190647,1753242646545,-1578.69,0.00022465,2]
[374190649,1753242646554,-467.89198023,0.00022465,2]
[374190651,1753242646564,-1976.78,0.00022465,2]
[374190653,1753242646573,-463.46768373,0.00022465,2]
[374190655,1753242646582,-460.0,0.00022465,2]
[374190657,1753242646592,-2354.1,0.00022465,2]
[374190659,1753242646601,-464.23854134,0.00022465,2]
[374190661,1753242646610,-460.0,0.00022465,2]
[374190663,1753242646619,-462.54147586,0.00022465,2]
[374190665,1753242646629,-460.0,0.00022465,2]
[374190667,1753242646638,-460.0,0.00022465,2]
[374190669,1753242646647,-588.73,0.00022465,2]
[374190672,1753242646656,-460.0,0.00022465,2]
[374190674,1753242646666,-460.0,0.00022465,2]
[374190676,1753242646675,-460.0,0.00022465,2]
[374190678,1753242646685,-460.0,0.00022465,2]
[374190680,1753242646695,-460.0,0.00022465,2]
[374190682,1753242646704,-470.37708431,0.00022465,2]
[374190684,1753242646713,-460.0,0.00022465,2]
[374190685,1753242646722,-1588.68,0.00022465,2]
[374190687,1753242646733,-1190.5,0.00022465,2]
[374190689,1753242646743,-460.0,0.00022465,2]
[374190691,1753242646752,-460.0,0.00022465,2]
[374190693,1753242646762,-460.0,0.00022465,2]
[374190695,1753242646771,-460.0,0.00022465,2]
[374190697,1753242646780,-762.11,0.00022465,2]
[374190699,1753242646789,-460.0,0.00022465,2]
[374190701,1753242646798,-460.0,0.00022465,2]
[374190703,1753242646807,-598.1181684,0.00022465,2]
[374190705,1753242646817,-460.0,0.00022465,2]
[374190707,1753242646826,-151.0,0.00022465,7]
[374190709,1753242646836,-460.0,0.00022465,2]
[374190711,1753242646845,-1352.44,0.00022465,2]
[374190713,1753242646855,-460.0,0.00022465,2]
[374190716,1753242646864,-460.0,0.00022465,2]
[374190719,1753242646874,-921.04,0.00022465,2]
[374190722,1753242646883,-460.0,0.00022465,2]
[374190724,1753242646892,-460.0,0.00022465,2]
[374190726,1753242646902,-460.0,0.00022465,2]
[374190728,1753242646911,-1115.04,0.00022465,2]
[374190730,1753242646920,-154.687373,0.00022465,7]
[374190732,1753242646929,-460.0,0.00022465,2]
[374190734,1753242646939,-460.0,0.00022465,2]
[374190736,1753242646948,-914.59,0.00022465,2]
[374190738,1753242646957,-460.0,0.00022465,2]
[374190740,1753242646966,-460.0,0.00022465,2]
[374190742,1753242646975,-460.0,0.00022465,2]
[374190743,1753242646984,-460.0,0.00022465,2]
[374190753,1753242647070,-571.1,0.00022465,2]
[374190755,1753242647080,-468.75941125,0.00022465,2]
[374190757,1753242647089,-460.0,0.00022465,2]
[374190759,1753242647099,-1519.69,0.00022465,2]
[374190761,1753242647108,-460.0,0.00022465,2]
[374190763,1753242647118,-151.0,0.00022465,7]
[374190765,1753242647127,-252.210451,0.00022465,7]
[374190767,1753242647136,-460.0,0.00022465,2]
[374190769,1753242647146,-460.0,0.00022465,2]
[374190771,1753242647155,-151.0,0.00022465,7]
[374190773,1753242647170,-469.32067159,0.00022465,2]
[374190775,1753242647179,-460.0,0.00022465,2]
[374190777,1753242647189,-460.0,0.00022465,2]
[374190779,1753242647198,-151.0,0.00022465,7]
[374190781,1753242647209,-466.47559134,0.00022466,2]
[374190783,1753242647218,-460.0,0.00022466,2]
[374190785,1753242647227,-460.0,0.00022466,2]
[374190787,1753242647239,-450.0,0.00022466,2]
[374190789,1753242647248,-310.00000032,0.00022466,2]
[374190791,1753242647257,-501.10055354,0.00022473,2]
[374190793,1753242647266,-503.73116406,0.00022473,2]
[374190795,1753242647277,-500.0,0.00022473,2]
[374190797,1753242647286,-500.0,0.00022473,2]
[374190799,1753242647295,-25391.80113581,0.0002249,7]
[374190801,1753242647305,-184.724742,0.0002249,7]
[374190803,1753242647314,-151.0,0.0002249,7]
[374190804,1753242647324,-200.894341,0.0002249,7]
[374190806,1753242647333,-1001.50653014,0.00022521,2]
[374190808,1753242647342,-486.27875379,0.00022521,2]
[374190810,1753242647351,-859.2850931,0.00022575,2]
[374190812,1753242647360,-10029.3,0.00022598,5]
[374190814,1753242647369,-151.0,0.00022598,7]
[374190816,1753242647379,-151.0,0.000226,7]
[374190818,1753242647388,-260.0,0.00022608,2]
[374190820,1753242647397,-1475.90050002,0.00022624,7]
[374190822,1753242647407,-1000.0,0.00022721,2]
[374190824,1753242647416,-500.0,0.00022738,2]
[374190826,1753242647425,-500.0,0.00022739,2]
[374190828,1753242647435,-500.0,0.00022739,2]
[374190830,1753242647445,-188.79392216,0.00022739,2]
[374190832,1753242647454,-460.0,0.00022739,2]
[374190834,1753242647463,-460.0,0.00022739,2]
[374190836,1753242647472,-460.0,0.00022739,2]
[374190838,1753242647481,-460.0,0.00022739,2]
[374190840,1753242647490,-460.0,0.00022739,2]
[374190842,1753242647500,-460.0,0.00022739,2]
[374190844,1753242647509,-460.0,0.00022739,2]
[374190846,1753242647520,-3230.04,0.00022739,2]
[374190848,1753242647529,-460.0,0.00022739,2]
[374190850,1753242647539,-460.0,0.00022739,2]
[374190852,1753242647548,-464.30575721,0.00022739,2]
[374190854,1753242647557,-460.0,0.00022739,2]
[374190856,1753242647566,-1233.9,0.00022739,2]
[374190858,1753242647576,-460.0,0.00022739,2]
[374190860,1753242647585,-460.0,0.00022739,2]
[374190862,1753242647594,-1711.58,0.00022739,2]
[374190864,1753242647603,-308.72,0.00022739,2]
[374190866,1753242647613,-460.0,0.00022739,2]
[374190868,1753242647622,-460.0,0.00022739,2]
[374190870,1753242647631,-460.0,0.00022739,2]
[374190872,1753242647640,-460.0,0.00022739,2]
[374190874,1753242647649,-1578.69,0.00022739,2]
[374190876,1753242647659,-1976.78,0.00022739,2]
[374190878,1753242647668,-2354.1,0.00022739,2]
[374190880,1753242647677,-460.0,0.00022739,2]
[374190882,1753242647686,-460.0,0.00022739,2]
[374190883,1753242647696,-460.0,0.00022739,2]
[374190885,1753242647705,-460.0,0.00022739,2]
[374190887,1753242647715,-460.0,0.00022739,2]
[374190889,1753242647724,-460.0,0.00022739,2]
[374190891,1753242647733,-460.0,0.00022739,2]
[374190893,1753242647743,-460.0,0.00022739,2]
[374190895,1753242647752,-1588.68,0.00022739,2]
[374190897,1753242647761,-1190.5,0.00022739,2]
[374190899,1753242647771,-460.0,0.00022739,2]
[374190901,1753242647780,-460.0,0.00022739,2]
[374190903,1753242647789,-762.11,0.00022739,2]
[374190905,1753242647798,-460.0,0.00022739,2]
[374190907,1753242647807,-460.0,0.00022739,2]
[374190909,1753242647816,-460.0,0.00022739,2]
[374190911,1753242647826,-151.0,0.00022739,7]
[374190913,1753242647835,-460.0,0.00022739,2]
[374190915,1753242647844,-1352.44,0.00022739,2]
[374190917,1753242647854,-460.0,0.00022739,2]
[374190919,1753242647863,-460.0,0.00022739,2]
[374190921,1753242647872,-921.04,0.00022739,2]
[374190923,1753242647881,-151.18,0.00022739,2]
[374190925,1753242647891,-460.0,0.00022739,2]
[374190927,1753242647900,-1115.04,0.00022739,2]
[374190929,1753242647909,-460.0,0.00022739,2]
[374190931,1753242647918,-460.0,0.00022739,2]
[374190933,1753242647927,-914.59,0.00022739,2]
[374190935,1753242647937,-460.0,0.00022739,2]
[374190937,1753242647946,-460.0,0.00022739,2]
[374190939,1753242647955,-460.0,0.00022739,2]
[374190941,1753242647964,-571.1,0.00022739,2]
[374190943,1753242647973,-1519.69,0.00022739,2]
[374190945,1753242647983,-460.0,0.00022739,2]
[374190947,1753242647994,-153.410667,0.00022739,7]
[374190949,1753242648003,-460.0,0.00022739,2]
[374190951,1753242648012,-151.0,0.00022739,7]
[374190953,1753242648021,-151.0,0.00022739,7]
[374190955,1753242648030,-1475.90050002,0.00022797,7]
[374190957,1753242648039,-223.0315306,0.00022879,2]
[374190958,1753242648047,-151.0,0.00022893,7]
[374190960,1753242648057,-151.0,0.00022893,7]
[374190962,1753242648066,-71064.2146423,0.00022929,2]
[374190964,1753242648075,-151.0,0.00022929,7]
[374190966,1753242648084,-151.0,0.00022929,7]
[374190968,1753242648093,-151.0,0.00022929,7]
[374190970,1753242648102,-151.0,0.00022929,7]
[374190972,1753242648111,-151.0,0.00022929,7]
[374190974,1753242648120,-151.0,0.00022929,7]
[374190976,1753242648130,-241.3150095,0.00022929,7]
[374190978,1753242648139,-151.0,0.00022929,7]
[374190980,1753242648148,-151.0,0.00022929,7]
[374190982,1753242648158,-151.0,0.00022929,7]
[374190984,1753242648171,-1475.90050002,0.00022969,8]
[374190986,1753242648180,-500.0,0.00022973,2]
[374190988,1753242648189,-500.0,0.00022973,2]
[374190990,1753242648198,-520.75550898,0.00022973,2]
[374190992,1753242648209,-412.24016643,0.00022973,2]
[374190994,1753242648218,-151.77505433,0.00022973,2]
[374190996,1753242648228,-500.98894013,0.00022973,2]
[374190998,1753242648237,-500.0,0.00022973,2]
[374190999,1753242648247,-500.0,0.00022973,2]
[374191001,1753242648258,-500.0,0.00022973,2]
[374191003,1753242648268,-500.0,0.00022973,2]
[374191005,1753242648279,-411.44928912,0.00022973,2]
[374191007,1753242648289,-500.0,0.00022973,2]
[374191009,1753242648298,-500.0,0.00022973,2]
[374191011,1753242648308,-501.27535184,0.00022973,2]
[374191013,1753242648318,-429.6101251,0.00022986,2]
[374191015,1753242648328,-429.6101251,0.00022986,2]
[374191017,1753242648337,-544.0,0.00022993,2]
[374191019,1753242648347,-151.0,0.00023011,7]
[374191021,1753242648357,-500.0,0.00023012,2]
[374191023,1753242648366,-500.0,0.00023013,2]
[374191025,1753242648376,-500.0,0.00023013,2]
[374191027,1753242648386,-460.0,0.00023013,2]
[374191029,1753242648395,-418.93550915,0.00023013,2]
[374191030,1753242648405,-460.0,0.00023013,2]
[374191031,1753242648415,-3230.04,0.00023013,2]
[374191032,1753242648424,-460.0,0.00023013,2]
[374191033,1753242648433,-460.0,0.00023013,2]
[374191034,1753242648443,-1233.9,0.00023013,2]
[374191035,1753242648452,-151.0,0.00023013,7]
[374191036,1753242648461,-460.0,0.00023013,2]
[374191037,1753242648471,-1711.58,0.00023013,2]
[374191039,1753242648480,-460.0,0.00023013,2]
[374191041,1753242648490,-151.0,0.00023013,7]
[374191043,1753242648499,-460.0,0.00023013,2]
[374191045,1753242648508,-460.0,0.00023013,2]
[374191047,1753242648518,-1578.69,0.00023013,2]
[374191049,1753242648528,-1976.78,0.00023013,2]
[374191051,1753242648536,-2354.1,0.00023013,2]
[374191053,1753242648545,-460.0,0.00023013,2]
[374191055,1753242648554,-460.0,0.00023013,2]
[374191057,1753242648563,-460.0,0.00023013,2]
[374191059,1753242648573,-460.0,0.00023013,2]
[374191061,1753242648582,-460.0,0.00023013,2]
[374191063,1753242648592,-460.0,0.00023013,2]
[374191065,1753242648601,-1588.68,0.00023013,2]
[374191067,1753242648610,-1190.5,0.00023013,2]
[374191069,1753242648620,-460.0,0.00023013,2]
[374191071,1753242648629,-460.0,0.00023013,2]
[374191073,1753242648640,-762.11,0.00023013,2]
[374191075,1753242648649,-460.0,0.00023013,2]
[374191077,1753242648659,-460.0,0.00023013,2]
[374191087,1753242648742,-460.0,0.00023013,2]
[374191089,1753242648751,-1352.44,0.00023013,2]
[374191091,1753242648761,-460.0,0.00023013,2]
[374191093,1753242648770,-460.0,0.00023013,2]
[374191095,1753242648781,-921.04,0.00023013,2]
[374191097,1753242648791,-460.0,0.00023013,2]
[374191099,1753242648800,-1115.04,0.00023013,2]
[374191100,1753242648810,-460.0,0.00023013,2]
[374191102,1753242648819,-460.0,0.00023013,2]
[374191105,1753242648829,-914.59,0.00023013,2]
[374191106,1753242648838,-460.0,0.00023013,2]
[374191108,1753242648847,-460.0,0.00023013,2]
[374191110,1753242648857,-460.0,0.00023013,2]
[374191112,1753242648866,-571.1,0.00023013,2]
[374191114,1753242648876,-1519.69,0.00023013,2]
[374191117,1753242648885,-460.0,0.00023013,2]
[374191118,1753242648895,-460.0,0.00023013,2]
[374191120,1753242648903,-261.88119994,0.00023017,2]
[374191122,1753242648913,-1000.0,0.00023021,2]
[374191125,1753242648922,-1000.0,0.00023021,2]
[374191127,1753242648932,-10029.3,0.00023053,6]
[374191129,1753242648942,-151.0,0.000231,9]
[374191131,1753242648951,-4717.00295148,0.00023109,2]
[374191133,1753242648961,-5202.83021244,0.00023109,2]
[374191135,1753242648970,-1475.90050002,0.00023141,8]
[374191137,1753242648980,-360.0,0.00023156,2]
[374191139,1753242648989,-500.0,0.00023158,2]
[374191141,1753242649000,-500.66823057,0.00023158,2]
[374191143,1753242649009,-500.0,0.00023158,2]
[374191145,1753242649017,-472.58471755,0.00023158,2]
[374191147,1753242649030,-500.0,0.00023158,2]
[374191149,1753242649040,-500.0,0.00023158,2]
[374191151,1753242649049,-500.43577641,0.00023158,2]
[374191153,1753242649058,-500.0,0.00023158,2]
[374191155,1753242649068,-500.0,0.00023158,2]
[374191157,1753242649077,-165.8063407,0.00023158,2]
[374191159,1753242649086,-500.0,0.00023158,2]
[374191161,1753242649095,-160.28662095,0.00023158,2]
[374191163,1753242649105,-156.64231511,0.00023162,2]
[374191165,1753242649114,-500.85938678,0.00023162,2]
[374191167,1753242649123,-501.48761306,0.00023164,2]
[374191169,1753242649133,-500.0,0.00023167,2]
[374191171,1753242649142,-500.9703602,0.000232,2]
[374191173,1753242649151,-500.0,0.000232,2]
[374191175,1753242649163,-500.55543963,0.000232,2]
[374191177,1753242649172,-500.0,0.000232,2]
[374191179,1753242649181,-500.0,0.000232,2]
[374191181,1753242649191,-500.0,0.000232,2]
[374191183,1753242649200,-155.451601,0.00023205,2]
[374191185,1753242649210,-429.674968,0.00023205,2]
[374191186,1753242649220,-429.674968,0.00023233,2]
[374191188,1753242649229,-858.4421354,0.00023233,2]
[374191190,1753242649239,-429.674968,0.00023233,2]
[374191192,1753242649249,-429.674968,0.00023233,2]
[374191194,1753242649258,-429.674968,0.00023233,2]
[374191196,1753242649268,-429.674968,0.00023233,2]
[374191199,1753242649279,-429.674968,0.00023233,2]
[374191200,1753242649288,-429.026539,0.00023233,2]
[374191203,1753242649298,-168.0,0.00023273,2]
[374191204,1753242649307,-538.78,0.00023277,3]
[374191206,1753242649317,-500.0,0.00023286,2]
[374191208,1753242649326,-500.0,0.00023287,2]
[374191210,1753242649335,-412.78960921,0.00023287,2]
[374191212,1753242649345,-151.0,0.00023287,7]
[374191214,1753242649358,-154.787269,0.00023287,7]
[374191216,1753242649367,-460.0,0.00023287,2]
[374191218,1753242649376,-460.0,0.00023287,2]
[374191220,1753242649385,-3230.04,0.00023287,2]
[374191222,1753242649395,-460.0,0.00023287,2]
[374191224,1753242649404,-460.0,0.00023287,2]
[374191226,1753242649414,-151.0,0.00023287,7]
[374191228,1753242649423,-1233.9,0.00023287,2]
[374191230,1753242649433,-460.0,0.00023287,2]
[374191232,1753242649442,-1711.58,0.00023287,2]
[374191234,1753242649452,-460.0,0.00023287,2]
[374191236,1753242649461,-460.0,0.00023287,2]
[374191238,1753242649470,-460.0,0.00023287,2]
[374191240,1753242649479,-1578.69,0.00023287,2]
[374191242,1753242649489,-1976.78,0.00023287,2]
[374191244,1753242649498,-2354.1,0.00023287,2]
[374191246,1753242649507,-460.0,0.00023287,2]
[374191248,1753242649516,-460.0,0.00023287,2]
[374191250,1753242649527,-460.0,0.00023287,2]
[374191252,1753242649536,-460.0,0.00023287,2]
[374191253,1753242649544,-460.0,0.00023287,2]
[374191254,1753242649554,-1588.68,0.00023287,2]
[374191255,1753242649562,-1190.5,0.00023287,2]
[374191256,1753242649572,-460.0,0.00023287,2]
[374191257,1753242649581,-762.11,0.00023287,2]
[374191258,1753242649590,-460.0,0.00023287,2]
[374191259,1753242649599,-460.0,0.00023287,2]
[374191260,1753242649609,-460.0,0.00023287,2]
[374191261,1753242649618,-151.0,0.00023287,7]
[374191262,1753242649626,-1352.44,0.00023287,2]
[374191263,1753242649635,-460.0,0.00023287,2]
[374191264,1753242649645,-460.0,0.00023287,2]
[374191265,1753242649654,-921.04,0.00023287,2]
[374191266,1753242649663,-460.0,0.00023287,2]
[374191267,1753242649672,-1115.04,0.00023287,2]
[374191268,1753242649682,-460.0,0.00023287,2]
[374191269,1753242649691,-914.59,0.00023287,2]
[374191270,1753242649701,-595.87830233,0.00023287,2]
[374191271,1753242649711,-460.0,0.00023287,2]
[374191272,1753242649719,-571.1,0.00023287,2]
[374191273,1753242649729,-1519.69,0.00023287,2]
[374191274,1753242649738,-460.0,0.00023287,2]
[374191275,1753242649747,-460.0,0.00023287,2]
[374191276,1753242649756,-274.27384637,0.00023288,2]
[374191277,1753242649766,-280.22416713,0.00023288,2]
[374191278,1753242649776,-500.0,0.00023288,2]
[374191279,1753242649785,-6900.91,0.000233,7]
[374191280,1753242649794,-152.2507,0.000233,7]
[374191281,1753242649803,-151.0,0.000233,5]
[374191282,1753242649812,-168.0,0.0002331,2]
[374191283,1753242649821,-1475.90050002,0.00023314,9]